bitfinex-derivatives/quotes_SOLF0:USTF0_20251216
["timestamp","ask_amount","ask_price","bid_price","bid_amount"]
[1765873960158,4.1472441,126.06,126.02,3.29]
[1765873960353,4.1472441,126.06,125.98,3.29]
[1765873960552,4.1472441,126.06,126.0,3.29]
[1765873960749,0.06030411,126.04,126.02,0.05659014]
[1765873960951,0.06030411,126.04,126.02,3.34659014]
[1765873971271,7.20170411,126.04,126.02,3.34659014]
[1765873977986,0.06030411,126.04,126.02,3.34659014]
[1765873978682,7.20180411,126.04,126.02,3.34659014]
[1765873980385,0.06030411,126.04,126.02,3.34659014]
[1765873981281,0.06030411,126.04,126.02,10.48909014]
[1765873981482,0.06030411,126.04,126.03,3.29]
[1765873981682,67.28,126.1,126.04,3.29]
[1765873982789,0.06084367,126.08,126.06,0.05529896]
[1765873983087,7.20004367,126.08,126.06,0.05529896]
[1765873984682,0.06084367,126.08,126.06,3.16529896]
[1765873993994,0.06084367,126.08,126.06,10.30549896]
[1765873994195,0.06084367,126.08,126.07,3.11]
[1765873995091,7.1374,126.12,126.08,3.11]
[1765873995892,7.1375,126.11,126.08,3.11]
[1765873996390,7.19167891,126.11,126.08,3.16866731]
[1765874005108,7.1381,126.1,126.08,3.16866731]
[1765874010720,0.05417891,126.11,126.08,3.16866731]
[1765874010915,0.05417891,126.11,126.1,3.11]
[1765874012419,0.05417891,126.11,126.1,5.76563829]
[1765874012915,0.05417891,126.11,126.08,3.36866731]
[1765874013117,0.05417891,126.11,126.08,6.0243056]
[1765874013309,0.05417891,126.11,126.09,3.31]
[1765874014022,0.05417891,126.11,126.1,5.96563829]
[1765874016124,0.05417891,126.11,126.1,13.10363829]
[1765874016516,0.05417891,126.11,126.1,5.96563829]
[1765874017227,0.05417891,126.11,126.1,3.31]
[1765874017428,0.05417891,126.11,126.1,5.96563829]
[1765874019328,0.00417891,126.11,126.1,5.96563829]
[1765874019529,0.00417891,126.11,126.1,13.10363829]
[1765874020129,9.79023829,126.16,126.13,3.31]
[1765874020924,9.85093283,126.16,126.13,3.36304925]
[1765874022324,2.71633283,126.16,126.13,0.05304925]
[1765874023231,7.1357,126.14,126.13,0.05304925]
[1765874028924,2.71633283,126.16,126.13,3.36304925]
[1765874029124,0.06069454,126.16,126.13,3.36304925]
[1765874029328,0.06069454,126.16,126.14,3.31]
[1765874029935,0.06069454,126.16,126.13,0.05304925]
[1765874030929,7.1352,126.15,126.13,0.05304925]
[1765874034742,7.1352,126.15,126.13,3.36304925]
[1765874034943,7.1352,126.15,126.13,0.05304925]
[1765874035146,7.1352,126.15,126.13,3.36304925]
[1765874037339,7.1352,126.15,126.13,0.05304925]
[1765874039043,7.1352,126.15,126.13,3.36304925]
[1765874040043,7.1357,126.14,126.13,0.05304925]
[1765874040543,7.1352,126.15,126.13,0.05304925]
[1765874040748,7.1352,126.15,126.13,3.36304925]
[1765874044547,0.06069454,126.16,126.14,3.32]
[1765874045148,0.06069454,126.16,126.15,3.32]
[1765874045351,0.06069454,126.16,126.13,3.37304925]
[1765874045556,2.71633283,126.16,126.13,3.37304925]
[1765874045759,9.85113283,126.16,126.13,3.37304925]
[1765874046854,7.1353,126.15,126.13,3.37304925]
[1765874047454,7.1357,126.14,126.13,0.05304925]
[1765874047654,9.79133829,126.14,126.13,0.05304925]
[1765874049057,7.1357,126.14,126.13,0.05304925]
[1765874052354,7.1352,126.15,126.13,3.37304925]
[1765874053452,7.1357,126.14,126.13,0.05304925]
[1765874057760,7.1357,126.14,126.13,3.37304925]
[1765874058161,7.1352,126.15,126.13,3.37304925]
[1765874059064,7.19539454,126.16,126.13,3.37304925]
[1765874059567,0.06069454,126.16,126.15,3.32]
[1765874061266,0.06069454,126.16,126.13,3.37304925]
[1765874066667,7.19529454,126.16,126.13,3.37304925]
[1765874067674,7.1352,126.15,126.13,3.37304925]
[1765874068065,111.04689454,126.16,126.13,0.05304925]
[1765874068268,178.28689454,126.16,126.13,0.05304925]
[1765874068675,7.1357,126.14,126.13,0.05304925]
[1765874069477,7.1357,126.14,126.13,3.37304925]
[1765874069674,7.1357,126.14,126.13,0.05304925]
[1765874070278,7.1357,126.14,126.06,3.32]
[1765874070279,7.138,126.11,126.06,3.32]
[1765874070776,7.1381,126.1,126.06,3.32]
[1765874071166,7.19312796,126.09,126.07,0.05041976]
[1765874071576,11.33904666,126.09,126.07,0.05041976]
[1765874072278,7.19312796,126.09,126.07,0.05041976]
[1765874076487,7.19312796,126.09,126.07,3.31041976]
[1765874077187,7.19312796,126.09,126.07,0.05041976]
[1765874078392,7.19312796,126.09,126.07,3.31041976]
[1765874079794,0.05422796,126.09,126.07,3.31041976]
[1765874088901,0.00422796,126.09,126.07,3.31041976]
[1765874091595,7.14282796,126.09,126.07,3.31041976]
[1765874094805,7.1391,126.08,126.07,3.31041976]
[1765874095005,7.1391,126.08,126.07,0.05041976]
[1765874097804,0.00422796,126.09,126.07,3.31041976]
[1765874097805,7.14282796,126.09,126.07,3.31041976]
[1765874098205,4.15014666,126.09,126.07,0.05041976]
[1765874098413,7.1391,126.08,126.07,0.05041976]
[1765874101111,7.1407,126.06,126.02,3.26]
[1765874102112,0.05976517,126.05,126.04,3.26]
[1765874104308,0.05976517,126.05,126.03,3.43692107]
[1765874105918,7.20056517,126.05,126.03,3.43692107]
[1765874109216,0.05976517,126.05,126.03,3.43692107]
[1765874109922,7.20076517,126.05,126.03,3.43692107]
[1765874120532,0.05976517,126.05,126.03,3.43692107]
[1765874120730,178.3305,126.11,126.03,7.58283977]
[1765874120925,178.3305,126.11,126.04,3.38]
[1765874121530,2.65667172,126.1,126.05,3.38]
[1765874121732,0.0541008,126.09,126.06,3.43102785]
[1765874121935,7.1927008,126.09,126.06,3.43102785]
[1765874122427,0.0541008,126.09,126.06,0.05102785]
[1765874122630,2.65667172,126.08,126.06,0.05102785]
[1765874123932,7.1397,126.07,126.06,0.05102785]
[1765874124132,9.79637172,126.07,126.06,0.05102785]
[1765874125833,7.1397,126.07,126.06,0.05102785]
[1765874129237,74.4397,126.07,126.06,0.05102785]
[1765874134740,77.14977252,126.09,126.06,3.47102785]
[1765874135143,74.4931008,126.09,126.06,3.47102785]
[1765874138050,0.0541008,126.09,126.07,3.42]
[1765874138238,0.0541008,126.09,126.08,3.42]
[1765874140760,0.0541008,126.09,126.08,13.21566889]
[1765874140954,0.0041008,126.09,126.08,14.79566889]
[1765874141359,0.0041008,126.09,126.08,13.21566889]
[1765874143361,0.0041008,126.09,126.08,14.79566889]
[1765874148762,0.0041008,126.09,126.08,13.21566889]
[1765874148960,0.0041008,126.09,126.08,14.79566889]
[1765874151965,0.0041008,126.09,126.08,13.21566889]
[1765874183486,0.0041008,126.09,126.08,10.5591]
[1765874189494,0.0041008,126.09,126.08,14.70750204]
[1765874200695,7.1358,126.14,126.11,3.21]
[1765874201498,7.1358,126.14,126.11,3.2691868]
[1765874201698,7.19058948,126.14,126.11,3.2691868]
[1765874202890,7.19058948,126.14,126.11,10.4065868]
[1765874204003,7.19058948,126.14,126.12,3.21]
[1765874211407,7.19058948,126.14,126.11,3.2691868]
[1765874213912,0.05478948,126.14,126.11,3.2691868]
[1765874215205,0.05478948,126.14,126.13,3.21]
[1765874220314,110.9379,126.22,126.14,3.21]
[1765874220516,6.07637397,126.21,126.16,3.21]
[1765874220714,7.1313,126.22,126.19,3.21]
[1765874220906,110.9103,126.25,126.19,3.21]
[1765874221106,6.07158102,126.24,126.19,3.21]
[1765874221307,7.1313,126.22,126.2,0.05470159]
[1765874223508,8.7113,126.22,126.2,0.05470159]
[1765874224608,7.1327,126.2,126.15,70.63]
[1765874224810,7.1327,126.2,126.16,3.23]
[1765874225421,4.14694404,126.22,126.16,3.23]
[1765874225623,0.05317615,126.2,126.18,0.05650785]
[1765874226513,0.05317615,126.2,126.18,3.28650785]
[1765874227113,0.05317615,126.2,126.19,3.23]
[1765874228216,115.02314404,126.29,126.2,3.23]
[1765874228427,115.02314404,126.29,126.22,3.23]
[1765874228811,110.8807,126.28,126.22,3.23]
[1765874229221,0.05394332,126.26,126.24,0.05571275]
[1765874229421,7.18294332,126.26,126.24,0.05571275]
[1765874230215,0.05394332,126.26,126.24,3.28571275]
[1765874232719,7.18294332,126.26,126.24,0.05571275]
[1765874234617,8.76294332,126.26,126.24,0.05571275]
[1765874237620,7.1315,126.22,126.18,3.23]
[1765874237822,110.9231,126.23,126.18,3.23]
[1765874238614,7.1322,126.21,126.19,0.05740136]
[1765874238812,7.1322,126.21,126.2,3.23]
[1765874239015,0.05870333,126.22,126.2,3.23]
[1765874239923,0.05870333,126.22,126.2,10.3623]
[1765874240217,0.05870333,126.22,126.21,3.23]
[1765874242823,74.3494,126.26,126.22,3.23]
[1765874243027,7.1294,126.26,126.22,3.23]
[1765874243528,7.1294,126.26,126.24,3.23]
[1765874244023,7.18676252,126.26,126.24,3.28336466]
[1765874245418,7.1295,126.25,126.24,3.28336466]
[1765874247123,7.1295,126.25,126.24,0.05336466]
[1765874252020,74.3295,126.25,126.24,0.05336466]
[1765874258027,74.3295,126.25,126.21,3.14]
[1765874258028,110.9227,126.23,126.18,5.78877804]
[1765874258230,67.2,126.22,126.18,5.78877804]
[1765874259238,7.18668177,126.21,126.19,0.05668573]
[1765874260241,7.18668177,126.21,126.19,3.19668573]
[1765874262635,7.1323,126.2,126.19,3.19668573]
[1765874263338,7.18668177,126.21,126.19,3.19668573]
[1765874264144,0.05488177,126.21,126.19,3.19668573]
[1765874266226,0.05488177,126.21,126.19,10.32938573]
[1765874266432,0.05488177,126.21,126.2,3.14]
[1765874276146,7.18668177,126.21,126.2,3.14]
[1765874276647,7.18668177,126.21,126.19,3.19668573]
[1765874276844,7.1323,126.2,126.19,0.05668573]
[1765874280143,7.1323,126.2,126.19,3.19668573]
[1765874280346,2.70528408,126.21,126.19,3.19668573]
[1765874280347,0.05488177,126.21,126.19,3.19668573]
[1765874280946,0.05488177,126.21,126.2,3.14]
[1765874281950,0.05488177,126.21,126.19,3.19668573]
[1765874282750,7.18718177,126.21,126.19,3.19668573]
[1765874283551,7.1323,126.2,126.19,3.19668573]
[1765874285152,7.1323,126.2,126.19,0.05668573]
[1765874290457,7.1323,126.2,126.19,3.16668573]
[1765874291045,7.18678177,126.21,126.19,3.16668573]
[1765874297159,9.78270231,126.2,126.19,0.05668573]
[1765874297364,7.1323,126.2,126.19,3.16668573]
[1765874298155,7.1323,126.2,126.19,0.05668573]
[1765874302666,7.18668177,126.21,126.19,0.05668573]
[1765874303063,7.18668177,126.21,126.19,3.16668573]
[1765874305361,7.1323,126.2,126.19,0.05668573]
[1765874314364,13.23122877,126.2,126.19,0.05668573]
[1765874315375,7.1323,126.2,126.19,0.05668573]
[1765874318276,7.1342,126.17,126.14,3.34]
[1765874319277,7.19396934,126.17,126.14,3.39773674]
[1765874320376,71.44290665,126.17,126.14,0.05773674]
[1765874321781,182.43130665,126.17,126.14,0.05773674]
[1765874322275,4.14313731,126.15,126.14,0.05773674]
[1765874322478,111.0125,126.14,126.08,3.34]
[1765874322676,67.24,126.13,126.08,3.34]
[1765874322881,71.38313731,126.13,126.08,3.34]
[1765874323484,0.05407195,126.12,126.09,3.39057361]
[1765874323882,7.19217195,126.12,126.09,3.39057361]
[1765874324194,0.05407195,126.12,126.09,3.39057361]
[1765874324888,7.1382,126.11,126.09,0.05057361]
[1765874325387,11.28133731,126.11,126.09,0.05057361]
[1765874325590,67.24,126.1,126.09,0.05057361]
[1765874330285,178.2893,126.1,126.05,3.34]
[1765874330491,111.0661,126.08,126.03,3.34]
[1765874331092,7.1417,126.05,126.03,3.34]
[1765874331299,7.1417,126.05,126.03,3.40061659]
[1765874331492,7.19428389,126.05,126.03,3.40061659]
[1765874332602,0.05258389,126.05,126.03,3.40061659]
[1765874342313,7.19408389,126.05,126.03,3.40061659]
[1765874343815,7.1421,126.04,126.03,0.06061659]
[1765874344419,7.1439,126.01,125.99,3.13]
[1765874344630,7.1439,126.01,125.96,3.13]
[1765874344631,115.28339839,126.01,125.96,3.13]
[1765874345418,115.28339839,126.01,125.97,3.19049183]
[1765874345419,0.05066541,126.0,125.97,3.19049183]
[1765874345609,67.35066541,126.0,125.97,3.19049183]
[1765874346013,7.1455,125.98,125.97,0.06049183]
[1765874349118,7.147,125.96,125.94,3.13]
[1765874349318,71.47259839,125.97,125.92,3.13]
[1765874349931,7.1467,125.96,125.92,3.13]
[1765874350320,0.05159875,125.95,125.93,3.18424087]
[1765874354731,7.19889875,125.95,125.93,3.18424087]
[1765874355034,7.19889875,125.95,125.93,0.05424087]
[1765874356726,11.35149714,125.95,125.93,0.05424087]
[1765874356934,67.34,125.94,125.93,0.05424087]
[1765874357231,7.1484,125.93,125.89,3.13]
[1765874357639,4.15259839,125.93,125.86,11.6640218]
[1765874357835,4.15259839,125.91,125.87,3.13]
[1765874358054,67.34,125.9,125.84,3.13]
[1765874358338,0.05252705,125.88,125.86,3.15809133]
[1765874361736,7.20392705,125.88,125.86,0.02809133]
[1765874362337,7.20392705,125.88,125.86,3.15809133]
[1765874362534,7.20392705,125.88,125.86,0.02809133]
[1765874363438,4.15259839,125.87,125.86,0.02809133]
[1765874363644,7.1526,125.86,125.82,3.13]
[1765874363838,74.5326,125.86,125.82,3.13]
[1765874364144,111.2792,125.84,125.78,3.13]
[1765874364353,4.15259839,125.83,125.78,3.13]
[1765874364746,0.05870256,125.82,125.78,3.13]
[1765874365343,7.1521,125.87,125.82,3.13]
[1765874365840,2.66607079,125.86,125.82,3.13]
[1765874366436,0.05200145,125.85,125.83,3.18870256]
[1765874369048,0.05200145,125.85,125.83,0.05870256]
[1765874369451,2.66607079,125.84,125.83,0.05870256]
[1765874369648,111.2865,125.83,125.76,5.79607079]
[1765874369848,2.66607079,125.81,125.77,3.13]
[1765874370746,0.05243345,125.8,125.77,3.13]
[1765874372148,0.00243345,125.8,125.79,3.13]
[1765874372648,0.00243345,125.8,125.79,4.71]
[1765874375550,0.00243345,125.8,125.79,3.13]
[1765874379047,0.00243345,125.8,125.78,3.37]
[1765874383565,0.00243345,125.8,125.79,6.03607079]
[1765874384957,67.44,125.86,125.8,3.37]
[1765874385265,67.44,125.86,125.83,3.37]
[1765874385858,74.5924,125.86,125.83,3.37]
[1765874386160,74.65098127,125.86,125.83,3.422288]
[1765874386764,7.1531,125.85,125.83,3.422288]
[1765874386954,2.66607079,125.84,125.83,0.052288]
[1765874388763,113.94547079,125.84,125.78,3.37]
[1765874388963,2.66607079,125.82,125.78,3.37]
[1765874389668,7.1558,125.8,125.77,6.03607079]
[1765874390566,7.1558,125.8,125.77,3.37]
[1765874390959,7.1564,125.79,125.77,3.37]
[1765874391164,2.66607079,125.79,125.75,3.37]
[1765874391365,111.3143,125.8,125.73,6.03607079]
[1765874391366,0.05144876,125.78,125.73,6.03607079]
[1765874391560,7.1575,125.77,125.74,3.37]
[1765874392363,7.158,125.76,125.74,3.37]
[1765874392558,2.66607079,125.77,125.72,6.03607079]
[1765874392767,0.06015115,125.76,125.72,3.37]
[1765874393871,7.1589,125.75,125.72,3.37]
[1765874395277,7.1592,125.74,125.72,3.37]
[1765874398170,2.66607079,125.75,125.71,2.80039096]
[1765874398171,7.1598,125.73,125.71,2.80039096]
[1765874398370,9.88690001,125.73,125.71,2.80039096]
[1765874399081,0.06102922,125.73,125.72,3.37]
[1765874399573,0.00102922,125.73,125.72,6.03607079]
[1765874399774,113.97767079,125.81,125.73,3.37]
[1765874399976,113.97767079,125.81,125.76,3.37]
[1765874400581,7.1569,125.78,125.76,3.37]
[1765874400881,2.66607079,125.77,125.76,0.05310479]
[1765874402870,0.05476354,125.78,125.76,3.20310479]
[1765874403079,0.05476354,125.78,125.77,3.15]
[1765874405992,0.00476354,125.78,125.77,4.75]
[1765874406886,0.00476354,125.78,125.77,11.9074]
[1765874407075,7.1545,125.83,125.78,3.15]
[1765874407477,7.1547,125.82,125.78,3.15]
[1765874408080,7.1539,125.84,125.79,3.20871335]
[1765874408288,0.05584783,125.81,125.79,3.20871335]
[1765874409480,67.46,125.85,125.8,3.15]
[1765874410796,0.05794992,125.84,125.82,3.15]
[1765874410982,0.05794992,125.84,125.82,3.20155622]
[1765874411378,0.05794992,125.84,125.82,10.35605622]
[1765874411690,0.05794992,125.84,125.83,3.15]
[1765874413077,125.69550789,125.94,125.84,3.15]
[1765874413279,6.08575756,125.93,125.91,1.96184213]
[1765874413480,67.46,125.95,125.89,3.15]
[1765874414288,0.05153164,125.93,125.91,0.05062901]
[1765874414492,0.05153164,125.93,125.91,3.20062901]
[1765874416093,0.05153164,125.93,125.91,0.05062901]
[1765874416481,7.20013164,125.93,125.91,0.05062901]
[1765874420487,7.20013164,125.93,125.91,3.20062901]
[1765874421087,7.20013164,125.93,125.91,0.05062901]
[1765874426100,7.20013164,125.93,125.91,3.20062901]
[1765874426300,7.20013164,125.93,125.91,0.05062901]
[1765874428796,67.4,125.92,125.91,0.05062901]
[1765874430298,74.5489,125.92,125.91,0.05062901]
[1765874432298,7.1506,125.9,125.85,3.15]
[1765874432500,67.4,125.92,125.85,3.15]
[1765874433298,67.4,125.92,125.87,0.05148412]
[1765874433603,0.05789114,125.9,125.87,0.05148412]
[1765874434399,0.05789114,125.9,125.87,3.40148412]
[1765874434901,7.1506,125.89,125.87,3.40148412]
[1765874437405,0.05789114,125.9,125.87,3.40148412]
[1765874437803,111.1684,125.97,125.87,4.98148412]
[1765874437992,67.4,125.96,125.87,3.35]
[1765874438600,7.1484,125.93,125.9,3.35]
[1765874438803,7.2082674,125.93,125.9,3.40594232]
[1765874438997,0.0598674,125.93,125.9,10.55594232]
[1765874439308,0.0598674,125.93,125.91,3.35]
[1765874440902,0.0598674,125.93,125.9,7.20594232]
[1765874440903,0.0598674,125.93,125.92,10.4989]
[1765874441107,7.147,125.96,125.93,3.35]
[1765874442008,7.19938849,125.96,125.93,3.40976531]
[1765874442204,0.05238849,125.96,125.93,3.40976531]
[1765874442903,0.05238849,125.96,125.95,3.35]
[1765874445513,0.00238849,125.96,125.95,3.35]
[1765874454215,0.00238849,125.96,125.95,10.4972]
[1765874455620,7.1438,126.01,125.97,7.1456]
[1765874455812,7.1438,126.01,125.98,3.35]
[1765874456422,7.1433,126.02,125.99,3.35]
[1765874456617,7.20153894,126.02,125.99,3.40514589]
[1765874461720,0.05823894,126.02,125.99,10.54984589]
[1765874461915,0.05823894,126.02,126.0,3.35]
[1765874465323,6.05374026,126.1,126.02,3.12]
[1765874465525,14.2733,126.14,126.02,3.12]
[1765874465526,111.0134,126.14,126.05,3.12]
[1765874465720,118.1499,126.14,126.13,4.98e-05]
[1765874465926,118.1499,126.14,126.05,3.12]
[1765874465927,111.044,126.11,126.05,3.12]
[1765874466335,0.05253553,126.09,126.07,0.0564618]
[1765874468031,7.19213553,126.09,126.07,0.0564618]
[1765874470926,0.05253553,126.09,126.07,3.1764618]
[1765874473630,0.05253553,126.09,126.07,10.3166618]
[1765874473821,0.05253553,126.09,126.08,3.12]
[1765874474726,71.51134796,126.15,126.09,3.12]
[1765874475233,7.137,126.13,126.09,3.12]
[1765874475528,67.36,126.15,126.11,3.12]
[1765874475728,0.05848344,126.14,126.12,3.17312458]
[1765874476838,0.05848344,126.14,126.12,0.05312458]
[1765874477024,0.05848344,126.14,126.12,3.17312458]
[1765874479742,7.19508344,126.14,126.12,3.17312458]
[1765874480537,0.05848344,126.14,126.12,3.17312458]
[1765874482144,0.05848344,126.14,126.12,0.05312458]
[1765874482542,7.19498344,126.14,126.12,0.05312458]
[1765874483339,7.19498344,126.14,126.12,3.17312458]
[1765874490444,0.05848344,126.14,126.12,3.17312458]
[1765874490646,2.65442901,126.18,126.13,3.12]
[1765874490854,2.65442901,126.2,126.15,3.12]
[1765874491644,7.18590834,126.19,126.17,3.12]
[1765874492454,0.05220834,126.19,126.17,3.12]
[1765874492853,0.05220834,126.19,126.18,6.01442901]
[1765874493254,0.05220834,126.19,126.18,3.36]
[1765874493755,0.05220834,126.19,126.16,6.07064237]
[1765874494748,7.18580834,126.19,126.17,3.36]
[1765874494946,0.05220834,126.19,126.16,3.41621336]
[1765874495855,7.1342,126.18,126.16,3.41621336]
[1765874503360,7.18590834,126.19,126.16,3.41621336]
[1765874506159,7.1344,126.18,126.16,0.05621336]
[1765874506858,7.1344,126.18,126.16,3.41621336]
[1765874507562,0.05220834,126.19,126.16,3.41621336]
[1765874508260,7.18610834,126.19,126.16,3.41621336]
[1765874510552,0.05220834,126.19,126.16,3.41621336]
[1765874510958,0.05220834,126.19,126.18,3.36]
[1765874516072,7.18600834,126.19,126.16,3.41621336]
[1765874518074,0.05220834,126.19,126.16,0.05621336]
[1765874518270,2.70663735,126.19,126.16,0.05621336]
[1765874518972,2.70663735,126.19,126.16,3.41621336]
[1765874519173,7.1342,126.18,126.16,3.41621336]
[1765874520165,7.1348,126.17,126.16,3.41621336]
[1765874520872,7.1348,126.17,126.16,0.05621336]
[1765874525475,9.78922901,126.17,126.16,0.05621336]
[1765874525673,77.04922901,126.17,126.16,0.05621336]
[1765874526176,7.1365,126.14,126.12,3.34]
[1765874526563,7.1358,126.16,126.12,3.34]
[1765874526768,7.1358,126.16,126.13,3.34]
[1765874527066,7.19269765,126.16,126.13,3.39555101]
[1765874528574,0.05689765,126.16,126.14,3.34]
[1765874529171,0.05689765,126.16,126.14,10.4763]
[1765874529372,0.05689765,126.16,126.15,3.34]
[1765874529777,118.29207084,126.23,126.16,3.34]
[1765874529985,118.29207084,126.23,126.15,2.65442901]
[1765874529986,2.65442901,126.24,126.19,3.34]
[1765874530872,7.1324,126.22,126.2,3.39890245]
[1765874535583,7.1324,126.22,126.2,0.05890245]
[1765874535782,2.65442901,126.21,126.2,0.05890245]
[1765874536281,74.3924,126.22,126.2,0.05890245]
[1765874536482,77.04682901,126.22,126.2,0.05890245]
[1765874539989,117.03491686,126.21,126.15,3.3]
[1765874540181,2.65442901,126.2,126.15,3.3]
[1765874540992,7.1343,126.18,126.16,0.06073655]
[1765874542092,7.1343,126.18,126.16,3.41073655]
[1765874543498,7.1348,126.17,126.16,3.41073655]
[1765874546907,0.05798737,126.19,126.17,3.24]
[1765874547103,0.05798737,126.19,126.18,5.89260794]
[1765874548103,0.05798737,126.19,126.17,3.24]
[1765874549594,7.19158737,126.19,126.17,3.24]
[1765874553112,118.26977084,126.26,126.17,3.24]
[1765874553409,6.08898614,126.25,126.2,3.41]
[1765874553609,6.08898614,126.24,126.2,3.41]
[1765874553810,178.1748,126.26,126.2,3.41]
[1765874554019,6.08868676,126.25,126.2,3.41]
[1765874554207,7.1319,126.22,126.21,0.05821489]
[1765874554607,7.1319,126.22,126.21,3.46821489]
[1765874556707,7.1319,126.22,126.21,0.05821489]
[1765874557214,7.1319,126.22,126.21,3.46821489]
[1765874557421,7.1319,126.22,126.21,0.05821489]
[1765874565221,74.3719,126.22,126.21,0.05821489]
[1765874570932,78.51532708,126.22,126.21,0.05821489]
[1765874572233,74.3719,126.22,126.21,0.05821489]
[1765874574136,74.3719,126.22,126.21,3.46821489]
[1765874579941,0.06050927,126.24,126.21,3.46821489]
[1765874580546,7.19130927,126.24,126.21,3.46821489]
[1765874582956,0.06050927,126.24,126.22,3.15]
[1765874583141,120.57606939,126.31,126.23,3.15]
[1765874583142,110.8785,126.3,126.23,3.15]
[1765874583338,9.70516939,126.31,126.25,3.15]
[1765874583750,7.128,126.29,126.26,3.15]
[1765874584257,7.18772281,126.29,126.26,3.20751726]
[1765874584455,0.05972281,126.29,126.26,10.33701726]
[1765874584754,0.05972281,126.29,126.27,3.15]
[1765874585739,7.18822281,126.29,126.27,3.15]
[1765874585940,0.05972281,126.29,126.27,3.15]
[1765874587643,0.05972281,126.29,126.26,3.20751726]
[1765874588754,7.1291,126.27,126.26,3.20751726]
[1765874589146,0.05972281,126.29,126.26,3.20751726]
[1765874590455,0.05972281,126.29,126.26,10.33701726]
[1765874590751,0.05972281,126.29,126.27,3.15]
[1765874592857,7.18772281,126.29,126.27,3.15]
[1765874594556,7.1285,126.28,126.26,3.20751726]
[1765874595555,7.18772281,126.29,126.26,3.20751726]
[1765874596858,7.1287,126.28,126.26,0.05751726]
[1765874597058,0.05972281,126.29,126.26,0.05751726]
[1765874597258,0.05972281,126.29,126.26,3.20751726]
[1765874597862,7.1285,126.28,126.26,3.20751726]
[1765874599056,4.14342708,126.28,126.26,0.05751726]
[1765874599453,7.1291,126.27,126.26,0.05751726]
[1765874603757,7.1291,126.27,126.26,3.20751726]
[1765874605064,7.18822281,126.29,126.26,3.20751726]
[1765874607154,7.18822281,126.29,126.27,3.15]
[1765874607365,0.05972281,126.29,126.27,3.15]
[1765874608967,0.05972281,126.29,126.28,3.15]
[1765874610965,0.05972281,126.29,126.26,3.20751726]
[1765874611162,0.05972281,126.29,126.26,0.05751726]
[1765874611358,2.64879291,126.28,126.26,0.05751726]
[1765874611877,9.77739291,126.28,126.26,0.05751726]
[1765874613673,7.1286,126.28,126.26,3.26751726]
[1765874617779,7.18772281,126.29,126.26,3.26751726]
[1765874623069,7.18772281,126.29,126.27,3.21]
[1765874623476,0.05972281,126.29,126.27,3.21]
[1765874623787,0.05972281,126.29,126.28,3.21]
[1765874624395,0.05972281,126.29,126.27,10.339]
[1765874625287,0.05972281,126.29,126.28,3.21]
[1765874626385,0.05972281,126.29,126.26,3.26751726]
[1765874627891,7.1285,126.28,126.26,3.26751726]
[1765874629495,7.18772281,126.29,126.26,3.26751726]
[1765874629685,7.18772281,126.29,126.27,3.21]
[1765874638599,7.1285,126.28,126.27,3.21]
[1765874641114,7.1285,126.28,126.26,3.26751726]
[1765874641904,7.18772281,126.29,126.26,3.26751726]
[1765874642098,2.70851572,126.29,126.26,3.26751726]
[1765874642300,2.70851572,126.29,126.26,0.05751726]
[1765874642506,2.70851572,126.29,126.26,3.44751726]
[1765874644005,7.1291,126.28,126.26,3.44751726]
[1765874646120,2.70851572,126.29,126.26,0.05751726]
[1765874647920,7.1285,126.28,126.26,0.05751726]
[1765874649426,7.1285,126.28,126.26,3.44751726]
[1765874657129,0.05972281,126.29,126.26,3.44751726]
[1765874658024,0.05972281,126.29,126.26,10.57711726]
[1765874658221,0.05972281,126.29,126.27,3.39]
[1765874659126,0.05972281,126.29,126.28,3.39]
[1765874660337,0.05972281,126.29,126.28,10.5185]
[1765874660531,0.05972281,126.29,126.28,13.16729291]
[1765874662833,0.05972281,126.29,126.28,3.39]
[1765874674044,0.05972281,126.29,126.27,3.24]
[1765874674350,7.18772281,126.29,126.27,3.24]
[1765874675440,0.05972281,126.29,126.27,3.24]
[1765874675945,0.05972281,126.29,126.28,10.3685]
[1765874676142,0.05972281,126.29,126.28,3.24]
[1765874688767,0.05972281,126.29,126.26,3.29751726]
[1765874689871,7.1287,126.28,126.26,3.29751726]